{"text_format":"3","workbook":"xlsx","n_sheets":4,"sheets":["Başlangıç","Düğün Bütçesi","Giyim-Resepsiyon-Müzik-Resim","Dekorasyon-Çiçek-Hediye-Seyahat"],"not_rendered":{"charts":1,"defined_names":22},"read":"whole","date_system":"1900"}

{"sheet":"Başlangıç","index":0,"n_rows":7,"n_cols":2,"rows_kept":7}
[null,"BU ŞABLON HAKKINDA"]
[null,"Düğün giderlerinizi izlemek için bu şablonu kullanın."]
[null,"Çeşitli kategorilerdeki tahmini ve gerçek maliyetleri ayrı çalışma sayfalarına girin."]
[null,"Düğün Bütçesi Özeti ve grafiği sizin için otomatik güncelleştirilir."]
[null,"Not: "]
[null,"Her çalışma sayfasının A sütununda ek yönergeler sağlanmıştır. Bu metin özellikle gizlendi. Metni kaldırmak için A sütununu ve ardından SİL seçeneğini belirleyin. Metni göstermek için A sütununu seçin ve yazı tipi rengini değiştirin."]
[null,"Tablolar hakkında daha fazla bilgi edinmek için bir tabloda SHIFT ve F10 tuşlarına basın, TABLO seçeneğini ve ardından ALTERNATİF METİN seçeneğini belirleyin."]

{"sheet":"Düğün Bütçesi","index":1,"n_rows":19,"n_cols":6,"rows_kept":19,"merged":[[2,2,4,5],[18,2,42,5]]}
["Bu çalışma sayfasında Düğün Bütçesi oluşturun. Geçerli çalışma sayfasındaki özeti ve grafiği güncelleştirmek için Giyim-Resepsiyon-Müzik-Resim çalışma sayfasına ve Dekorasyon-Çiçek-Hediye-Seyahat çalışma sayfasına ayrıntıları girin. Bu çalışma sayfasının nasıl kullanılacağını açıklayan yararlı yönergeler bu sütundaki hücrelerdedir. Düğün Tarihi etiketi C1 hücresindedir.",null,"Düğün Tarihi:"]
["Düğün Tarihi C2 hücresine girin. Kalan Gün Sayısı E2 hücresinde otomatik olarak hesaplanır.",null,{"$f":"TODAY()+365","v":"2019-12-04"},"Kalan Gün Sayısı:",{"$f":"C2-TODAY()","v":365}]
["Bu çalışma sayfasının başlığı C3 hücresindedir. Sonraki yönerge A6 hücresindedir.",null,"Düğün Bütçesi Özeti"]
[]
[]
["C6 hücresinde başlayan Bütçe Özeti Tablosu otomatik olarak güncelleştirilir. Sonraki yönerge A19 hücresindedir.",null,"KATEGORİ","TAHMİNİ","GERÇEK","FAZLA/EKSİK"]
[null,null,"Giyim",{"$f":"Giyim_Toplamı_tah","v":{"v":9490,"d":"9,490.00"}},{"$f":"Giyim_Toplamı_fii","v":{"v":9770,"d":"9,770.00"}},{"$f":"BütçeÖzeti[[#This Row],[TAHMİNİ]]-BütçeÖzeti[[#This Row],[GERÇEK]]","v":{"v":-280,"d":"-280.00"}}]
[null,null,"Resepsiyon",{"$f":"Resepsiyon_Toplamı_tah","v":{"v":1050,"d":"1,050.00"}},{"$f":"Resepsiyon_Toplamı_fii","v":{"v":928,"d":"928.00"}},{"$f":"BütçeÖzeti[[#This Row],[TAHMİNİ]]-BütçeÖzeti[[#This Row],[GERÇEK]]","v":{"v":122,"d":"122.00"}}]
[null,null,"Müzik",{"$f":"Müzik_Eğlence_Toplamı_tah","v":{"v":600,"d":"600.00"}},{"$f":"Müzik_Eğlence_Toplamı_fii","v":{"v":400,"d":"400.00"}},{"$f":"BütçeÖzeti[[#This Row],[TAHMİNİ]]-BütçeÖzeti[[#This Row],[GERÇEK]]","v":{"v":200,"d":"200.00"}}]
[null,null,"Baskı",{"$f":"Baskı_Kırtasiye__Toplamı_tah","v":{"v":935,"d":"935.00"}},{"$f":"Baskı_Kırtasiye__Toplamı_fii","v":{"v":870,"d":"870.00"}},{"$f":"BütçeÖzeti[[#This Row],[TAHMİNİ]]-BütçeÖzeti[[#This Row],[GERÇEK]]","v":{"v":65,"d":"65.00"}}]
[null,null,"Fotoğraflar",{"$f":"Fotoğraf_Toplamı_tah","v":{"v":1625,"d":"1,625.00"}},{"$f":"Fotoğraf_Toplamı_fii","v":{"v":1575,"d":"1,575.00"}},{"$f":"BütçeÖzeti[[#This Row],[TAHMİNİ]]-BütçeÖzeti[[#This Row],[GERÇEK]]","v":{"v":50,"d":"50.00"}}]
[null,null,"Dekorasyonlar",{"$f":"Dekorasyonlar_Toplamı_tah","v":{"v":700,"d":"700.00"}},{"$f":"Dekorasyonlar_Toplamı_fii","v":{"v":720,"d":"720.00"}},{"$f":"BütçeÖzeti[[#This Row],[TAHMİNİ]]-BütçeÖzeti[[#This Row],[GERÇEK]]","v":{"v":-20,"d":"-20.00"}}]
[null,null,"Çiçekler",{"$f":"Çiçekler_Toplamı_tah","v":{"v":900,"d":"900.00"}},{"$f":"Çiçekler_Toplamı_fii","v":{"v":850,"d":"850.00"}},{"$f":"BütçeÖzeti[[#This Row],[TAHMİNİ]]-BütçeÖzeti[[#This Row],[GERÇEK]]","v":{"v":50,"d":"50.00"}}]
[null,null,"Hediyeler",{"$f":"Hediyeler_Toplamı_tah","v":{"v":1345,"d":"1,345.00"}},{"$f":"Hediyeler_Toplamı_fii","v":{"v":1075,"d":"1,075.00"}},{"$f":"BütçeÖzeti[[#This Row],[TAHMİNİ]]-BütçeÖzeti[[#This Row],[GERÇEK]]","v":{"v":270,"d":"270.00"}}]
[null,null,"Seyahat",{"$f":"Seyahat_Ulaşım_Toplamı_tah","v":{"v":100,"d":"100.00"}},{"$f":"Seyahat_Ulaşım_Toplamı_fii","v":{"v":165,"d":"165.00"}},{"$f":"BütçeÖzeti[[#This Row],[TAHMİNİ]]-BütçeÖzeti[[#This Row],[GERÇEK]]","v":{"v":-65,"d":"-65.00"}}]
[null,null,"Diğer",{"$f":"Diğer_Giderler_Toplamı_tah","v":{"v":885,"d":"885.00"}},{"$f":"Diğer_Giderler_Toplamı_fii","v":{"v":1021,"d":"1,021.00"}},{"$f":"BütçeÖzeti[[#This Row],[TAHMİNİ]]-BütçeÖzeti[[#This Row],[GERÇEK]]","v":{"v":-136,"d":"-136.00"}}]
[null,null,"Toplam Giderler",{"$f":"SUBTOTAL(109,BütçeÖzeti[TAHMİNİ])","v":{"v":17630,"d":"17,630.00"}},{"$f":"SUBTOTAL(109,BütçeÖzeti[GERÇEK])","v":{"v":17374,"d":"17,374.00"}},{"$f":"SUBTOTAL(109,BütçeÖzeti[FAZLA/EKSİK])","v":{"v":256,"d":"256.00"}}]
[]
["C19 hücresindeki pasta grafiği otomatik olarak güncelleştirilir.",null,"Her kategorinin gider yüzdesini gösteren pasta grafiği bu hücrededir."]

{"sheet":"Giyim-Resepsiyon-Müzik-Resim","index":2,"n_rows":56,"n_cols":6,"rows_kept":56,"merged":[[16,1,16,4],[28,1,28,4],[29,1,29,4],[35,1,35,4],[48,1,48,4]]}
["Her kategori Tahmini ve Gerçek maliyetlerini bu çalışma sayfasında ilgili tablolara girin. Fazla veya eksik tutar otomatik hesaplanır. Giyim etiketi sağdaki hücrededir. Bu çalışma sayfasının nasıl kullanılacağını açıklayan yararlı yönergeler bu sütundaki hücrelerdedir. Başlamak için aşağı oka basın.","Giyim",{"$nulls":3}," "]
[" Sağdaki hücrede başlayan Giyim tablosuna ayrıntıları girin. Sonraki yönerge A18 hücresindedir.","KATEGORİ","TAHMİNİ","GERÇEK","FAZLA/EKSİK"," "]
[null,"Nişan yüzükleri",{"v":1500,"d":"1,500.00"},{"v":1500,"d":"1,500.00"},{"$f":"'Giyim-Resepsiyon-Müzik-Resim'!$C3-'Giyim-Resepsiyon-Müzik-Resim'!$D3","v":{"v":0,"d":"0.00"}}]
[null,"Müstakbel eş 1 yüzük",{"v":2000,"d":"2,000.00"},{"v":2300,"d":"2,300.00"},{"$f":"'Giyim-Resepsiyon-Müzik-Resim'!$C4-'Giyim-Resepsiyon-Müzik-Resim'!$D4","v":{"v":-300,"d":"-300.00 "}}]
[null,"Müstakbel eş 1 gelinlik/smokin",{"v":3000,"d":"3,000.00"},{"v":2750,"d":"2,750.00"},{"$f":"'Giyim-Resepsiyon-Müzik-Resim'!$C5-'Giyim-Resepsiyon-Müzik-Resim'!$D5","v":{"v":250,"d":"250.00"}}]
[null,"Müstakbel eş 1 duvak/taç",{"v":500,"d":"500.00"},{"v":500,"d":"500.00"},{"$f":"'Giyim-Resepsiyon-Müzik-Resim'!$C6-'Giyim-Resepsiyon-Müzik-Resim'!$D6","v":{"v":0,"d":"0.00"}}]
[null,"Müstakbel eş 1 ayakkabı",{"v":350,"d":"350.00"},{"v":300,"d":"300.00"},{"$f":"'Giyim-Resepsiyon-Müzik-Resim'!$C7-'Giyim-Resepsiyon-Müzik-Resim'!$D7","v":{"v":50,"d":"50.00"}}]
[null,"Müstakbel eş 1 takı",{"v":400,"d":"400.00"},{"v":550,"d":"550.00"},{"$f":"'Giyim-Resepsiyon-Müzik-Resim'!$C8-'Giyim-Resepsiyon-Müzik-Resim'!$D8","v":{"v":-150,"d":"-150.00 "}}]
[null,"Müstakbel eş 1 iç çamaşırı",{"v":20,"d":"20.00"},{"v":20,"d":"20.00"},{"$f":"'Giyim-Resepsiyon-Müzik-Resim'!$C9-'Giyim-Resepsiyon-Müzik-Resim'!$D9","v":{"v":0,"d":"0.00"}}]
[null,"Müstakbel eş 2 yüzük",{"v":300,"d":"300.00"},{"v":250,"d":"250.00"},{"$f":"'Giyim-Resepsiyon-Müzik-Resim'!$C10-'Giyim-Resepsiyon-Müzik-Resim'!$D10","v":{"v":50,"d":"50.00"}}]
[null,"Müstakbel eş 2 gelinlik/smokin",{"v":300,"d":"300.00"},{"v":350,"d":"350.00"},{"$f":"'Giyim-Resepsiyon-Müzik-Resim'!$C11-'Giyim-Resepsiyon-Müzik-Resim'!$D11","v":{"v":-50,"d":"-50.00 "}}]
[null,"Müstakbel eş 2 duvak/taç",{"v":500,"d":"500.00"},{"v":500,"d":"500.00"},{"$f":"'Giyim-Resepsiyon-Müzik-Resim'!$C12-'Giyim-Resepsiyon-Müzik-Resim'!$D12","v":{"v":0,"d":"0.00"}}]
[null,"Müstakbel eş 2 ayakkabı",{"v":200,"d":"200.00"},{"v":175,"d":"175.00"},{"$f":"'Giyim-Resepsiyon-Müzik-Resim'!$C13-'Giyim-Resepsiyon-Müzik-Resim'!$D13","v":{"v":25,"d":"25.00"}}]
[null,"Müstakbel eş 2 takı",{"v":400,"d":"400.00"},{"v":550,"d":"550.00"},{"$f":"'Giyim-Resepsiyon-Müzik-Resim'!$C14-'Giyim-Resepsiyon-Müzik-Resim'!$D14","v":{"v":-150,"d":"-150.00 "}}]
[null,"Müstakbel eş 2 iç çamaşırı",{"v":20,"d":"20.00"},{"v":25,"d":"25.00"},{"$f":"'Giyim-Resepsiyon-Müzik-Resim'!$C15-'Giyim-Resepsiyon-Müzik-Resim'!$D15","v":{"v":-5,"d":"-5.00 "}}]
[null,"Giyim Toplamı",{"$f":"SUBTOTAL(109,Giyim[TAHMİNİ])","v":{"v":9490,"d":"9,490.00"}},{"$f":"SUBTOTAL(109,Giyim[GERÇEK])","v":{"v":9770,"d":"9,770.00"}},{"$f":"SUBTOTAL(109,Giyim[FAZLA/EKSİK])","v":{"v":-280,"d":"-280.00 "}}]
[]
["Resepsiyon etiketi sağdaki hücrededir.","Resepsiyon*"]
["Sağdaki hücrede başlayan tabloya Eğlence ve Dekorasyon maliyetleri dışında Resepsiyon maliyetlerini girin. Sonraki yönerge A31 hücresindedir.","KATEGORİ","TAHMİNİ","GERÇEK","FAZLA/EKSİK"]
[null,"Oda/salon ücretleri",{"v":200,"d":"200.00"},{"v":150,"d":"150.00"},{"$f":"'Giyim-Resepsiyon-Müzik-Resim'!$C20-'Giyim-Resepsiyon-Müzik-Resim'!$D20","v":{"v":50,"d":"50.00"}}]
[null,"Masalar ve sandalyeler",{"v":100,"d":"100.00"},{"v":50,"d":"50.00"},{"$f":"'Giyim-Resepsiyon-Müzik-Resim'!$C21-'Giyim-Resepsiyon-Müzik-Resim'!$D21","v":{"v":50,"d":"50.00"}}]
[null,"Yiyecek",{"v":0,"d":"0.00"},{"v":0,"d":"0.00"},{"$f":"'Giyim-Resepsiyon-Müzik-Resim'!$C22-'Giyim-Resepsiyon-Müzik-Resim'!$D22","v":{"v":0,"d":"0.00"}}]
[null,"İçecekler",{"v":0,"d":"0.00"},{"v":0,"d":"0.00"},{"$f":"'Giyim-Resepsiyon-Müzik-Resim'!$C23-'Giyim-Resepsiyon-Müzik-Resim'!$D23","v":{"v":0,"d":"0.00"}}]
[null,"Masa Örtüleri",{"v":0,"d":"0.00"},{"v":0,"d":"0.00"},{"$f":"'Giyim-Resepsiyon-Müzik-Resim'!$C24-'Giyim-Resepsiyon-Müzik-Resim'!$D24","v":{"v":0,"d":"0.00"}}]
[null,"Pasta",{"v":700,"d":"700.00"},{"v":700,"d":"700.00"},{"$f":"'Giyim-Resepsiyon-Müzik-Resim'!$C25-'Giyim-Resepsiyon-Müzik-Resim'!$D25","v":{"v":0,"d":"0.00"}}]
[null,"Hediyeler",{"v":50,"d":"50.00"},{"v":28,"d":"28.00"},{"$f":"'Giyim-Resepsiyon-Müzik-Resim'!$C26-'Giyim-Resepsiyon-Müzik-Resim'!$D26","v":{"v":22,"d":"22.00"}}]
[null,"Personel ve bahşişler",{"v":0,"d":"0.00"},{"v":0,"d":"0.00"},{"$f":"'Giyim-Resepsiyon-Müzik-Resim'!$C27-'Giyim-Resepsiyon-Müzik-Resim'!$D27","v":{"v":0,"d":"0.00"}}]
[null,"Resepsiyon Toplamı",{"$f":"SUBTOTAL(109,Resepsiyon[TAHMİNİ])","v":{"v":1050,"d":"1,050.00"}},{"$f":"SUBTOTAL(109,Resepsiyon[GERÇEK])","v":{"v":928,"d":"928.00"}},{"$f":"SUBTOTAL(109,Resepsiyon[FAZLA/EKSİK])","v":{"v":122,"d":"122.00"}}]
[null,"* Eğlence ve dekorasyon hariç"]
[]
["Müzik ve Eğlence etiketi sağdaki hücrededir.","Müzik/Eğlence"]
["Sağdaki hücrede başlayan Müzik tablosuna ayrıntıları girin. Sonraki yönerge A37 hücresindedir.","KATEGORİ","TAHMİNİ","GERÇEK","FAZLA/EKSİK"]
[null,"Tören müzisyenleri",{"v":400,"d":"400.00"},{"v":400,"d":"400.00"},{"$f":"'Giyim-Resepsiyon-Müzik-Resim'!$C33-'Giyim-Resepsiyon-Müzik-Resim'!$D33","v":{"v":0,"d":"0.00"}}]
[null,"Tören grubu/DJ’i",{"v":200,"d":"200.00"},{"v":0,"d":"0.00"},{"$f":"'Giyim-Resepsiyon-Müzik-Resim'!$C34-'Giyim-Resepsiyon-Müzik-Resim'!$D34","v":{"v":200,"d":"200.00"}}]
[null,"Müzik/Eğlence Toplamı",{"$f":"SUBTOTAL(109,Müzik[TAHMİNİ])","v":{"v":600,"d":"600.00"}},{"$f":"SUBTOTAL(109,Müzik[GERÇEK])","v":{"v":400,"d":"400.00"}},{"$f":"SUBTOTAL(109,Müzik[FAZLA/EKSİK])","v":{"v":200,"d":"200.00"}}]
[]
["Baskı ve Kırtasiye etiketi sağdaki hücrededir.","Baskı/Kırtasiye"]
["Sağdaki hücrede başlayan Baskı tablosuna ayrıntıları girin. Sonraki yönerge A50 hücresindedir.","KATEGORİ","TAHMİNİ","GERÇEK","FAZLA/EKSİK"]
[null,"Davetiyeler",{"v":500,"d":"500.00"},{"v":450,"d":"450.00"},{"$f":"'Giyim-Resepsiyon-Müzik-Resim'!$C39-'Giyim-Resepsiyon-Müzik-Resim'!$D39","v":{"v":50,"d":"50.00"}}]
[null,"Duyurular",{"v":200,"d":"200.00"},{"v":175,"d":"175.00"},{"$f":"'Giyim-Resepsiyon-Müzik-Resim'!$C40-'Giyim-Resepsiyon-Müzik-Resim'!$D40","v":{"v":25,"d":"25.00"}}]
[null,"Teşekkür kartları",{"v":100,"d":"100.00"},{"v":100,"d":"100.00"},{"$f":"'Giyim-Resepsiyon-Müzik-Resim'!$C41-'Giyim-Resepsiyon-Müzik-Resim'!$D41","v":{"v":0,"d":"0.00"}}]
[null,"Kişisel kırtasiye",{"v":0,"d":"0.00"},{"v":0,"d":"0.00"},{"$f":"'Giyim-Resepsiyon-Müzik-Resim'!$C42-'Giyim-Resepsiyon-Müzik-Resim'!$D42","v":{"v":0,"d":"0.00"}}]
[null,"Konuk defteri",{"v":25,"d":"25.00"},{"v":25,"d":"25.00"},{"$f":"'Giyim-Resepsiyon-Müzik-Resim'!$C43-'Giyim-Resepsiyon-Müzik-Resim'!$D43","v":{"v":0,"d":"0.00"}}]
[null,"Programlar",{"v":75,"d":"75.00"},{"v":80,"d":"80.00"},{"$f":"'Giyim-Resepsiyon-Müzik-Resim'!$C44-'Giyim-Resepsiyon-Müzik-Resim'!$D44","v":{"v":-5,"d":"-5.00 "}}]
[null,"Resepsiyon peçeteleri",{"v":35,"d":"35.00"},{"v":40,"d":"40.00"},{"$f":"'Giyim-Resepsiyon-Müzik-Resim'!$C45-'Giyim-Resepsiyon-Müzik-Resim'!$D45","v":{"v":-5,"d":"-5.00 "}}]
[null,"Kibrit kutusu",{"v":0,"d":"0.00"},{"v":0,"d":"0.00"},{"$f":"'Giyim-Resepsiyon-Müzik-Resim'!$C46-'Giyim-Resepsiyon-Müzik-Resim'!$D46","v":{"v":0,"d":"0.00"}}]
[null,"Kaligrafi",{"v":0,"d":"0.00"},{"v":0,"d":"0.00"},{"$f":"'Giyim-Resepsiyon-Müzik-Resim'!$C47-'Giyim-Resepsiyon-Müzik-Resim'!$D47","v":{"v":0,"d":"0.00"}}]
[null,"Baskı/Kırtasiye Toplamı",{"$f":"SUBTOTAL(109,Baskı[TAHMİNİ])","v":{"v":935,"d":"935.00"}},{"$f":"SUBTOTAL(109,Baskı[GERÇEK])","v":{"v":870,"d":"870.00"}},{"$f":"SUBTOTAL(109,Baskı[FAZLA/EKSİK])","v":{"v":65,"d":"65.00"}}]
[]
["Fotoğraflar etiketi sağdaki hücrededir.","Fotoğraflar"]
["Sağdaki hücrede başlayan Fotoğraflar tablosuna ayrıntıları girin.","KATEGORİ","TAHMİNİ","GERÇEK","FAZLA/EKSİK"]
[null,"Tuvaletler",{"v":1300,"d":"1,300.00"},{"v":1300,"d":"1,300.00"},{"$f":"'Giyim-Resepsiyon-Müzik-Resim'!$C52-'Giyim-Resepsiyon-Müzik-Resim'!$D52","v":{"v":0,"d":"0.00"}}]
[null,"Ek baskılar",{"v":25,"d":"25.00"},{"v":25,"d":"25.00"},{"$f":"'Giyim-Resepsiyon-Müzik-Resim'!$C53-'Giyim-Resepsiyon-Müzik-Resim'!$D53","v":{"v":0,"d":"0.00"}}]
[null,"Fotoğraf albümleri",{"v":100,"d":"100.00"},{"v":100,"d":"100.00"},{"$f":"'Giyim-Resepsiyon-Müzik-Resim'!$C54-'Giyim-Resepsiyon-Müzik-Resim'!$D54","v":{"v":0,"d":"0.00"}}]
[null,"Videografi",{"v":200,"d":"200.00"},{"v":150,"d":"150.00"},{"$f":"'Giyim-Resepsiyon-Müzik-Resim'!$C55-'Giyim-Resepsiyon-Müzik-Resim'!$D55","v":{"v":50,"d":"50.00"}}]
[null,"Fotoğraf Toplamı",{"$f":"SUBTOTAL(109,Fotoğraflar[TAHMİNİ])","v":{"v":1625,"d":"1,625.00"}},{"$f":"SUBTOTAL(109,Fotoğraflar[GERÇEK])","v":{"v":1575,"d":"1,575.00"}},{"$f":"SUBTOTAL(109,Fotoğraflar[FAZLA/EKSİK])","v":{"v":50,"d":"50.00"}}]

{"sheet":"Dekorasyon-Çiçek-Hediye-Seyahat","index":3,"n_rows":48,"n_cols":5,"rows_kept":48,"merged":[[8,1,8,4],[9,1,9,4],[18,1,18,4],[27,1,27,4],[34,1,34,4]]}
["Her kategori Tahmini ve Gerçek maliyetlerini bu çalışma sayfasında ilgili tablolara girin. Fazla veya eksik tutar otomatik hesaplanır. Dekorasyon etiketi sağdaki hücrededir. Bu çalışma sayfasının nasıl kullanılacağını açıklayan yararlı yönergeler bu sütundaki hücrelerdedir. Başlamak için aşağı oka basın.","Dekorasyon*"]
["Sağdaki hücrede başlayan tabloya çiçek maliyetleri dışında Dekorasyon maliyetlerini girin. Sonraki yönerge A11 hücresindedir.","KATEGORİ","TAHMİNİ","GERÇEK","FAZLA/EKSİK"]
[null,"Sandalye fiyonkları",{"v":0,"d":"0.00"},{"v":0,"d":"0.00"},{"$f":"'Dekorasyon-Çiçek-Hediye-Seyahat'!$C3-'Dekorasyon-Çiçek-Hediye-Seyahat'!$D3","v":{"v":0,"d":"0.00"}}]
[null,"Masa orta süsleri",{"v":300,"d":"300.00"},{"v":320,"d":"320.00"},{"$f":"'Dekorasyon-Çiçek-Hediye-Seyahat'!$C4-'Dekorasyon-Çiçek-Hediye-Seyahat'!$D4","v":{"v":-20,"d":"-20.00 "}}]
[null,"Mumlar",{"v":100,"d":"100.00"},{"v":75,"d":"75.00"},{"$f":"'Dekorasyon-Çiçek-Hediye-Seyahat'!$C5-'Dekorasyon-Çiçek-Hediye-Seyahat'!$D5","v":{"v":25,"d":"25.00"}}]
[null,"Aydınlatma",{"v":100,"d":"100.00"},{"v":75,"d":"75.00"},{"$f":"'Dekorasyon-Çiçek-Hediye-Seyahat'!$C6-'Dekorasyon-Çiçek-Hediye-Seyahat'!$D6","v":{"v":25,"d":"25.00"}}]
[null,"Balonlar",{"v":200,"d":"200.00"},{"v":250,"d":"250.00"},{"$f":"'Dekorasyon-Çiçek-Hediye-Seyahat'!$C7-'Dekorasyon-Çiçek-Hediye-Seyahat'!$D7","v":{"v":-50,"d":"-50.00 "}}]
[null,"Dekorasyon Toplamı",{"$f":"SUBTOTAL(109,Dekorasyon[TAHMİNİ])","v":{"v":700,"d":"700.00"}},{"$f":"SUBTOTAL(109,Dekorasyon[GERÇEK])","v":{"v":720,"d":"720.00"}},{"$f":"SUBTOTAL(109,Dekorasyon[FAZLA/EKSİK])","v":{"v":-20,"d":"-20.00 "}}]
[null,"*Çiçekler hariç"]
[]
["Çiçekler etiketi sağdaki hücrededir.","Çiçekler"]
["Sağdaki hücrede başlayan Çiçekler tablosuna ayrıntıları girin. Sonraki yönerge A20 hücresindedir.","KATEGORİ","TAHMİNİ","GERÇEK","FAZLA/EKSİK"]
[null,"Buket",{"v":500,"d":"500.00"},{"v":450,"d":"450.00"},{"$f":"'Dekorasyon-Çiçek-Hediye-Seyahat'!$C13-'Dekorasyon-Çiçek-Hediye-Seyahat'!$D13","v":{"v":50,"d":"50.00"}}]
[null,"Yaka Çiçeği",{"v":0,"d":"0.00"},{"v":0,"d":"0.00"},{"$f":"'Dekorasyon-Çiçek-Hediye-Seyahat'!$C14-'Dekorasyon-Çiçek-Hediye-Seyahat'!$D14","v":{"v":0,"d":"0.00"}}]
[null,"Demet Çiçek",{"v":0,"d":"0.00"},{"v":0,"d":"0.00"},{"$f":"'Dekorasyon-Çiçek-Hediye-Seyahat'!$C15-'Dekorasyon-Çiçek-Hediye-Seyahat'!$D15","v":{"v":0,"d":"0.00"}}]
[null,"Tören",{"v":400,"d":"400.00"},{"v":400,"d":"400.00"},{"$f":"'Dekorasyon-Çiçek-Hediye-Seyahat'!$C16-'Dekorasyon-Çiçek-Hediye-Seyahat'!$D16","v":{"v":0,"d":"0.00"}}]
[null,"Resepsiyon",{"v":0,"d":"0.00"},{"v":0,"d":"0.00"},{"$f":"'Dekorasyon-Çiçek-Hediye-Seyahat'!$C17-'Dekorasyon-Çiçek-Hediye-Seyahat'!$D17","v":{"v":0,"d":"0.00"}}]
[null,"Çiçekler Toplamı",{"$f":"SUBTOTAL(109,Çiçekler[TAHMİNİ])","v":{"v":900,"d":"900.00"}},{"$f":"SUBTOTAL(109,Çiçekler[GERÇEK])","v":{"v":850,"d":"850.00"}},{"$f":"SUBTOTAL(109,Çiçekler[FAZLA/EKSİK])","v":{"v":50,"d":"50.00"}}]
[]
["Hediyeler etiketi sağdaki hücrededir.","Hediyeler"]
["Sağdaki hücrede başlayan Hediyeler tablosuna ayrıntıları girin. Sonraki yönerge A29 hücresindedir.","KATEGORİ","TAHMİNİ","GERÇEK","FAZLA/EKSİK"]
[null,"Katılımcılar",{"v":1000,"d":"1,000.00"},{"v":400,"d":"400.00"},{"$f":"'Dekorasyon-Çiçek-Hediye-Seyahat'!$C22-'Dekorasyon-Çiçek-Hediye-Seyahat'!$D22","v":{"v":600,"d":"600.00"}}]
[null,"Müstakbel eş 1",{"v":150,"d":"150.00"},{"v":200,"d":"200.00"},{"$f":"'Dekorasyon-Çiçek-Hediye-Seyahat'!$C23-'Dekorasyon-Çiçek-Hediye-Seyahat'!$D23","v":{"v":-50,"d":"-50.00 "}}]
[null,"Müstakbel eş 2",{"v":150,"d":"150.00"},{"v":200,"d":"200.00"},{"$f":"'Dekorasyon-Çiçek-Hediye-Seyahat'!$C24-'Dekorasyon-Çiçek-Hediye-Seyahat'!$D24","v":{"v":-50,"d":"-50.00 "}}]
[null,"Ebeveynler",{"v":25,"d":"25.00"},{"v":25,"d":"25.00"},{"$f":"'Dekorasyon-Çiçek-Hediye-Seyahat'!$C25-'Dekorasyon-Çiçek-Hediye-Seyahat'!$D25","v":{"v":0,"d":"0.00"}}]
[null,"Konuşmacılar/diğer katılımcılar",{"v":20,"d":"20.00"},{"v":250,"d":"250.00"},{"$f":"'Dekorasyon-Çiçek-Hediye-Seyahat'!$C26-'Dekorasyon-Çiçek-Hediye-Seyahat'!$D26","v":{"v":-230,"d":"-230.00 "}}]
[null,"Hediyeler Toplamı",{"$f":"SUBTOTAL(109,Hediyeler[TAHMİNİ])","v":{"v":1345,"d":"1,345.00"}},{"$f":"SUBTOTAL(109,Hediyeler[GERÇEK])","v":{"v":1075,"d":"1,075.00"}},{"$f":"SUBTOTAL(109,Hediyeler[FAZLA/EKSİK])","v":{"v":270,"d":"270.00"}}]
[]
["Seyahat veya Ulaşım etiketi sağdaki hücrededir.","Seyahat/Ulaşım"]
["Sağdaki hücrede başlayan Seyahat tablosuna ayrıntıları girin. Sonraki yönerge A36 hücresindedir.","KATEGORİ","TAHMİNİ","GERÇEK","FAZLA/EKSİK"]
[null,"Limuzin/Troley",{"v":100,"d":"100.00"},{"v":125,"d":"125.00"},{"$f":"'Dekorasyon-Çiçek-Hediye-Seyahat'!$C31-'Dekorasyon-Çiçek-Hediye-Seyahat'!$D31","v":{"v":-25,"d":"-25.00 "}}]
[null,"Otopark",{"v":0,"d":"0.00"},{"v":40,"d":"40.00"},{"$f":"'Dekorasyon-Çiçek-Hediye-Seyahat'!$C32-'Dekorasyon-Çiçek-Hediye-Seyahat'!$D32","v":{"v":-40,"d":"-40.00 "}}]
[null,"Taksiler",{"v":0,"d":"0.00"},{"v":0,"d":"0.00"},{"$f":"'Dekorasyon-Çiçek-Hediye-Seyahat'!$C33-'Dekorasyon-Çiçek-Hediye-Seyahat'!$D33","v":{"v":0,"d":"0.00"}}]
[null,"Seyahat/Ulaşım Toplamı",{"$f":"SUBTOTAL(109,Seyahat[TAHMİNİ])","v":{"v":100,"d":"100.00"}},{"$f":"SUBTOTAL(109,Seyahat[GERÇEK])","v":{"v":165,"d":"165.00"}},{"$f":"SUBTOTAL(109,Seyahat[FAZLA/EKSİK])","v":{"v":-65,"d":"-65.00 "}}]
[]
["Diğer Giderler etiketi sağdaki hücrededir.","Diğer Giderler"]
["Sağdaki hücrede başlayan Diğer Giderler tablosuna ayrıntıları girin.","KATEGORİ","TAHMİNİ","GERÇEK","FAZLA/EKSİK"]
[null,"Nikah Memuru",{"v":0,"d":"0.00"},{"v":0,"d":"0.00"},{"$f":"'Dekorasyon-Çiçek-Hediye-Seyahat'!$C38-'Dekorasyon-Çiçek-Hediye-Seyahat'!$D38","v":{"v":0,"d":"0.00"}}]
[null,"Tören alanı ücreti",{"v":40,"d":"40.00"},{"v":55,"d":"55.00"},{"$f":"'Dekorasyon-Çiçek-Hediye-Seyahat'!$C39-'Dekorasyon-Çiçek-Hediye-Seyahat'!$D39","v":{"v":-15,"d":"-15.00 "}}]
[null,"Düğün düzenleyicisi",{"v":0,"d":"0.00"},{"v":0,"d":"0.00"},{"$f":"'Dekorasyon-Çiçek-Hediye-Seyahat'!$C40-'Dekorasyon-Çiçek-Hediye-Seyahat'!$D40","v":{"v":0,"d":"0.00"}}]
[null,"Prova akşam yemeği",{"v":450,"d":"450.00"},{"v":450,"d":"450.00"},{"$f":"'Dekorasyon-Çiçek-Hediye-Seyahat'!$C41-'Dekorasyon-Çiçek-Hediye-Seyahat'!$D41","v":{"v":0,"d":"0.00"}}]
[null,"Nişan töreni",{"v":20,"d":"20.00"},{"v":50,"d":"50.00"},{"$f":"'Dekorasyon-Çiçek-Hediye-Seyahat'!$C42-'Dekorasyon-Çiçek-Hediye-Seyahat'!$D42","v":{"v":-30,"d":"-30.00 "}}]
[null,"Hediye partisi",{"v":30,"d":"30.00"},{"v":20,"d":"20.00"},{"$f":"'Dekorasyon-Çiçek-Hediye-Seyahat'!$C43-'Dekorasyon-Çiçek-Hediye-Seyahat'!$D43","v":{"v":10,"d":"10.00"}}]
[null,"Salon randevuları",{"v":45,"d":"45.00"},{"v":46,"d":"46.00"},{"$f":"'Dekorasyon-Çiçek-Hediye-Seyahat'!$C44-'Dekorasyon-Çiçek-Hediye-Seyahat'!$D44","v":{"v":-1,"d":"-1.00 "}}]
[null,"Bekarlığa veda partisi",{"v":0,"d":"0.00"},{"v":0,"d":"0.00"},{"$f":"'Dekorasyon-Çiçek-Hediye-Seyahat'!$C45-'Dekorasyon-Çiçek-Hediye-Seyahat'!$D45","v":{"v":0,"d":"0.00"}}]
[null,"Yemek",{"v":300,"d":"300.00"},{"v":400,"d":"400.00"},{"$f":"'Dekorasyon-Çiçek-Hediye-Seyahat'!$C46-'Dekorasyon-Çiçek-Hediye-Seyahat'!$D46","v":{"v":-100,"d":"-100.00 "}}]
[null,"Otel odaları",{"v":0,"d":"0.00"},{"v":0,"d":"0.00"},{"$f":"'Dekorasyon-Çiçek-Hediye-Seyahat'!$C47-'Dekorasyon-Çiçek-Hediye-Seyahat'!$D47","v":{"v":0,"d":"0.00"}}]
[null,"Diğer Giderler Toplamı",{"$f":"SUBTOTAL(109,DiğerGiderler[TAHMİNİ])","v":{"v":885,"d":"885.00"}},{"$f":"SUBTOTAL(109,DiğerGiderler[GERÇEK])","v":{"v":1021,"d":"1,021.00"}},{"$f":"SUBTOTAL(109,DiğerGiderler[FAZLA/EKSİK])","v":{"v":-136,"d":"-136.00 "}}]